bitfinex-derivatives/quotes_BTCF0:USTF0_20241128
["timestamp","ask_amount","ask_price","bid_price","bid_amount"]
[1732816043108,0.0527425,94966.0,94965.0,0.052637]
[1732816043800,0.0001055,94966.0,94965.0,0.052637]
[1732816044193,0.0071055,94966.0,94965.0,0.053637]
[1732816044702,0.0111055,94966.0,94965.0,0.053637]
[1732816044905,0.0111055,94966.0,94965.0,0.113157]
[1732816045497,0.0015801,94970.0,94965.0,0.06052]
[1732816045692,0.0015801,94970.0,94966.0,0.0307]
[1732816045898,0.0542151,94970.0,94969.0,0.052635]
[1732816046505,0.05431049,94970.0,94969.0,0.052635]
[1732816046712,0.06131049,94970.0,94969.0,0.052635]
[1732816047009,0.06431049,94970.0,94969.0,0.052635]
[1732816047309,0.06031049,94970.0,94969.0,0.052635]
[1732816047703,0.05731049,94970.0,94969.0,0.052635]
[1732816048006,0.05731049,94970.0,94969.0,0.090555]
[1732816048007,0.05831049,94970.0,94969.0,0.090555]
[1732816048509,0.00567549,94970.0,94969.0,0.090555]
[1732816052701,0.00567549,94970.0,94969.0,0.10360861]
[1732816053814,0.05831049,94970.0,94969.0,0.090555]
[1732816054212,0.05831049,94970.0,94969.0,0.03792]
[1732816055704,0.05831049,94970.0,94969.0,0.090555]
[1732816056711,0.05831049,94970.0,94969.0,0.052635]
[1732816059201,0.00567549,94970.0,94969.0,0.052635]
[1732816060017,0.00567549,94970.0,94969.0,0.121635]
[1732816065214,0.085226,94987.0,94969.0,0.121635]
[1732816065215,0.052625,94988.0,94987.0,0.052625]
[1732816065414,0.052625,94988.0,94987.0,0.3608]
[1732816065415,0.06597098,94988.0,94987.0,0.3608]
[1732816065817,0.06597098,94988.0,94980.0,0.3608]
[1732816065818,0.052628,94981.0,94980.0,0.3608]
[1732816066323,0.05272008,94981.0,94980.0,0.3608]
[1732816067419,0.05672008,94981.0,94980.0,0.3618]
[1732816069131,0.06072008,94981.0,94980.0,0.001]
[1732816070735,0.052632,94974.0,94973.0,0.0716]
[1732816071435,0.06072008,94981.0,94968.0,0.3608]
[1732816071735,0.052634,94971.0,94970.0,0.052634]
[1732816072326,0.14804,94973.0,94968.0,0.3608]
[1732816072628,0.14804,94973.0,94957.0,0.05844]
[1732816072629,0.052641,94959.0,94957.0,0.05844]
[1732816073637,0.052641,94959.0,94958.0,0.413441]
[1732816074027,0.052641,94959.0,94958.0,0.419441]
[1732816075335,0.0303,94963.0,94962.0,0.052639]
[1732816075538,0.082938,94963.0,94962.0,0.052639]
[1732816076028,0.09615106,94963.0,94962.0,0.052639]
[1732816076632,0.09915106,94963.0,94962.0,0.052639]
[1732816077039,0.06885106,94963.0,94962.0,0.052639]
[1732816077228,0.01621306,94963.0,94962.0,0.052639]
[1732816077638,0.06885106,94963.0,94962.0,0.052639]
[1732816079042,0.06785106,94963.0,94962.0,0.052639]
[1732816079240,0.06885106,94963.0,94962.0,0.052639]
[1732816079835,0.06785106,94963.0,94962.0,0.052639]
[1732816080035,0.06885106,94963.0,94962.0,0.052639]
[1732816080237,0.01621306,94963.0,94958.0,0.3608]
[1732816080737,0.052641,94959.0,94958.0,0.3608]
[1732816081242,0.052641,94959.0,94958.0,0.413441]
[1732816081646,0.052641,94959.0,94958.0,0.3608]
[1732816083143,0.01521306,94963.0,94958.0,0.3608]
[1732816083341,0.01521306,94963.0,94962.0,0.052639]
[1732816083650,0.01321306,94963.0,94962.0,0.052639]
[1732816083840,0.200678,94964.0,94962.0,0.052639]
[1732816084037,0.052638,94963.0,94962.0,0.052639]
[1732816084434,0.054638,94963.0,94962.0,0.052639]
[1732816084936,0.052638,94963.0,94962.0,0.052639]
[1732816085535,0.054638,94963.0,94962.0,0.052639]
[1732816086242,0.052638,94963.0,94962.0,0.052639]
[1732816086444,0.001,94963.0,94962.0,0.052639]
[1732816086839,0.003,94963.0,94962.0,0.052639]
[1732816087136,0.05264,94961.0,94960.0,0.0574]
[1732816089545,0.05564,94961.0,94960.0,0.0574]
[1732816089746,0.05564,94961.0,94958.0,0.3608]
[1732816089747,0.052641,94959.0,94958.0,0.3608]
[1732816090148,0.052641,94958.0,94957.0,0.052642]
[1732816090343,0.052645,94952.0,94951.0,0.07424]
[1732816090947,0.052645,94952.0,94951.0,0.126885]
[1732816092550,0.052645,94952.0,94951.0,0.127885]
[1732816092753,0.052645,94952.0,94951.0,0.053645]
[1732816093347,0.052645,94952.0,94951.0,0.054645]
[1732816093549,0.052645,94952.0,94951.0,0.002]
[1732816097458,0.01401504,94953.0,94946.0,0.00157975]
[1732816097759,0.052654,94935.0,94920.0,0.085062]
[1732816097959,0.200654,94935.0,94920.0,0.085062]
[1732816098157,0.200654,94935.0,94923.0,0.05266]
[1732816098346,0.200654,94935.0,94920.0,0.0324]
[1732816098347,0.200654,94935.0,94925.0,0.052659]
[1732816099564,0.200654,94935.0,94934.0,0.3748]
[1732816101055,0.21375781,94935.0,94934.0,0.3748]
[1732816105955,0.01310381,94935.0,94934.0,0.427455]
[1732816106156,0.00056001,94942.0,94941.0,0.052651]
[1732816106357,0.14804,94951.0,94935.0,0.0325]
[1732816106551,0.052647,94949.0,94943.0,0.3608]
[1732816106869,0.18048847,94950.0,94948.0,0.052647]
[1732816107168,0.18048847,94950.0,94949.0,0.052646]
[1732816107557,0.052648,94945.0,94944.0,0.084049]
[1732816108065,0.052648,94945.0,94944.0,0.0314]
[1732816109157,0.14804,94946.0,94945.0,0.052648]
[1732816109362,0.200688,94946.0,94945.0,0.052648]
[1732816109862,0.12784247,94950.0,94949.0,0.052646]
[1732816110060,0.200686,94950.0,94949.0,0.052646]
[1732816110251,0.200686,94950.0,94944.0,0.007]
[1732816110252,0.052648,94945.0,94944.0,0.007]
[1732816110452,0.052648,94945.0,94944.0,0.003]
[1732816110858,1.552648,94945.0,94944.0,0.003]
[1732816112362,1.552648,94945.0,94930.0,0.00158024]
[1732816112569,0.052656,94931.0,94930.0,0.00158024]
[1732816113465,0.052656,94931.0,94930.0,0.01058024]
[1732816114061,0.052656,94931.0,94930.0,0.00158024]
[1732816114262,0.053656,94931.0,94930.0,0.01658024]
[1732816114575,0.053656,94931.0,94930.0,0.06923724]
[1732816116259,0.053656,94931.0,94930.0,0.43003724]
[1732816116260,0.001,94931.0,94930.0,0.43003724]
[1732816117375,0.0317,94959.0,94930.0,0.37738024]
[1732816117571,0.05265,94943.0,94942.0,0.3608]
[1732816118970,0.05265,94943.0,94942.0,0.3658]
[1732816119373,0.06615778,94943.0,94942.0,0.3658]
[1732816119776,0.06615778,94943.0,94942.0,0.41845]
[1732816120277,0.052646,94950.0,94942.0,0.3688]
[1732816120572,0.14796,94951.0,94942.0,0.3688]
[1732816120779,0.052649,94944.0,94943.0,0.0326]
[1732816120967,0.14796,94951.0,94942.0,0.008]
[1732816121470,0.14796,94950.0,94942.0,0.008]
[1732816122565,0.05265,94943.0,94942.0,0.008]
[1732816125282,0.0656678,94943.0,94942.0,0.005]
[1732816125585,0.0656678,94943.0,94942.0,0.008]
[1732816130396,0.3816678,94943.0,94942.0,0.008]
[1732816130699,0.052655,94933.0,94932.0,0.0416]
[1732816130899,1.700615,94933.0,94932.0,0.0416]
[1732816131697,0.200615,94933.0,94923.0,0.0015803]
[1732816131894,0.05266,94925.0,94923.0,0.0015803]
[1732816132901,0.05266,94925.0,94924.0,0.3678]
[1732816133203,0.05266,94925.0,94924.0,0.3768]
[1732816133402,0.20062,94925.0,94924.0,0.3768]
[1732816134294,0.21395433,94925.0,94924.0,0.3768]
[1732816135294,0.21495433,94925.0,94924.0,0.3758]
[1732816136196,0.21495433,94925.0,94924.0,0.015]
[1732816136893,0.21495433,94925.0,94918.0,0.00010795]
[1732816136894,0.052663,94919.0,94918.0,0.00010795]
[1732816138898,0.052663,94919.0,94918.0,0.00710795]
[1732816138899,0.053663,94919.0,94918.0,0.00710795]
[1732816139492,0.053663,94919.0,94918.0,0.01010795]
[1732816145002,0.201543,94919.0,94918.0,0.01010795]
[1732816151211,0.200543,94919.0,94918.0,0.00710795]
[1732816161110,0.052659,94927.0,94918.0,0.00710795]
[1732816161315,0.052654,94935.0,94934.0,0.052654]
[1732816162323,0.14788,94938.0,94930.0,0.052657]
[1732816162509,0.052656,94932.0,94924.0,0.3608]
[1732816162818,0.052656,94932.0,94930.0,0.121136]
[1732816163316,0.052656,94931.0,94930.0,0.121136]
[1732816164613,0.054656,94931.0,94930.0,0.121136]
[1732816164816,0.055656,94931.0,94930.0,0.121136]
[1732816165806,0.055656,94931.0,94930.0,0.06848]
[1732816166711,1.555656,94931.0,94930.0,0.06848]
[1732816167819,1.555656,94931.0,94924.0,0.3608]
[1732816167820,0.05266,94925.0,94924.0,0.3608]
[1732816168519,0.14788,94926.0,94924.0,0.3608]
[1732816168820,0.00356001,94931.0,94925.0,0.05266]
[1732816168821,0.003,94931.0,94925.0,0.05266]
[1732816169023,0.200497,94930.0,94929.0,0.052657]
[1732816169316,0.200497,94930.0,94924.0,0.3608]
[1732816169317,0.003,94931.0,94924.0,0.3608]
[1732816169523,0.003,94931.0,94930.0,0.052657]
[1732816169711,0.0058894,94931.0,94930.0,0.052657]
[1732816170115,0.0048894,94931.0,94930.0,0.052657]
[1732816170422,0.0028894,94931.0,94930.0,0.052657]
[1732816170623,0.0555454,94931.0,94930.0,0.052657]
[1732816170919,0.0555454,94931.0,94930.0,0.094777]
[1732816171124,0.0585454,94931.0,94930.0,0.094777]
[1732816175412,0.0058894,94931.0,94930.0,0.094777]
[1732816175817,0.0585454,94931.0,94930.0,0.094777]
[1732816177725,0.0058894,94931.0,94930.0,0.094777]
[1732816179921,0.05274297,94943.0,94942.0,0.05265]
[1732816181216,0.05574297,94943.0,94942.0,0.05265]
[1732816181421,0.06274297,94943.0,94942.0,0.05365]
[1732816181828,0.06274297,94943.0,94942.0,0.41445]
[1732816182218,0.01009297,94943.0,94942.0,0.41445]
[1732816182922,0.01009297,94943.0,94942.0,0.47873]
[1732816183127,0.06274297,94943.0,94942.0,0.47873]
[1732816184226,0.01009297,94943.0,94942.0,0.47873]
[1732816185026,0.21042297,94943.0,94942.0,0.06528]
[1732816185734,1.71042297,94943.0,94942.0,0.001]
[1732816188738,1.72318402,94943.0,94942.0,0.001]
[1732816190735,0.01009297,94943.0,94942.0,0.41445]
[1732816191132,0.06274297,94943.0,94942.0,0.41445]
[1732816191326,0.06274297,94943.0,94942.0,0.05365]
[1732816191942,0.06274297,94943.0,94942.0,0.12157]
[1732816194129,0.06274297,94943.0,94942.0,0.06892]
[1732816194831,0.06274297,94943.0,94942.0,0.001]
[1732816195736,0.21038297,94943.0,94942.0,0.001]
[1732816196944,0.01009297,94943.0,94942.0,0.41445]
[1732816197850,0.01009297,94943.0,94942.0,0.44709]
[1732816201042,0.01,94943.0,94942.0,0.6366582]
[1732816201243,0.3608,94984.0,94967.0,0.052636]
[1732816201244,0.052638,94968.0,94967.0,0.052636]
[1732816201446,0.052638,94968.0,94967.0,0.413436]
[1732816202350,0.00010332,94968.0,94967.0,0.413436]
[1732816202644,0.01810332,94968.0,94967.0,0.415436]
[1732816203235,0.01710332,94968.0,94967.0,0.415436]
[1732816203742,0.00157989,94970.0,94969.0,0.052635]
[1732816204642,0.052632,94974.0,94973.0,0.052633]
[1732816205046,0.05274432,94974.0,94973.0,0.052633]
[1732816205846,0.05474432,94974.0,94973.0,0.052633]
[1732816206339,0.05674432,94974.0,94973.0,0.052633]
[1732816208054,0.00411232,94974.0,94973.0,0.052633]
[1732816209549,0.05674432,94974.0,94973.0,0.052633]
[1732816209852,0.05674432,94974.0,94973.0,0.079993]
[1732816210549,0.05674432,94974.0,94973.0,0.02736]
[1732816212446,0.05674432,94974.0,94973.0,0.079993]
[1732816212642,0.00411232,94974.0,94973.0,0.079993]
[1732816213042,0.05674432,94974.0,94973.0,0.079993]
[1732816213244,0.05674432,94974.0,94973.0,0.02736]
[1732816213555,0.05674432,94974.0,94973.0,0.079993]
[1732816215750,0.05674432,94974.0,94973.0,0.440793]
[1732816216650,0.00411232,94974.0,94973.0,0.440793]
[1732816218955,0.00411232,94974.0,94973.0,0.588233]
[1732816224948,0.00411232,94974.0,94973.0,0.6010363]
[1732816227658,0.00211232,94974.0,94973.0,0.6010363]
[1732816227859,0.00311232,94974.0,94973.0,0.6010363]
[1732816228964,0.00211232,94974.0,94973.0,0.6010363]
[1732816231363,0.05474432,94974.0,94973.0,0.38816]
[1732816232258,0.0674583,94974.0,94973.0,0.38816]
[1732816233862,0.0674583,94974.0,94973.0,0.3608]
[1732816237660,0.05474432,94974.0,94973.0,0.413433]
[1732816246668,0.05474432,94974.0,94969.0,0.05896]
[1732816246870,0.05474432,94974.0,94954.0,0.00157951]
[1732816246871,0.413435,94970.0,94954.0,0.00157951]
[1732816247073,0.052643,94954.0,94953.0,0.3616]
[1732816247369,0.052651,94941.0,94940.0,0.00084]
[1732816247570,0.052653,94936.0,94935.0,0.414254]
[1732816247771,0.052653,94936.0,94935.0,0.3608]
[1732816248662,0.14732,94944.0,94935.0,0.3608]
[1732816248663,0.052653,94940.0,94939.0,0.052651]
[1732816249068,0.052653,94936.0,94935.0,0.3608]
[1732816249466,0.053653,94936.0,94935.0,0.3668]
[1732816249973,0.053653,94936.0,94935.0,0.419454]
[1732816250770,0.053653,94936.0,94935.0,0.428454]
[1732816255377,0.001,94936.0,94935.0,0.428454]
[1732816256774,0.053653,94936.0,94935.0,0.428454]
[1732816257774,0.053653,94936.0,94935.0,0.3758]
[1732816260180,0.001,94936.0,94935.0,0.428454]
[1732816262574,0.053653,94936.0,94935.0,0.3758]
[1732816262877,0.053653,94936.0,94935.0,0.015]
[1732816269376,0.053653,94936.0,94935.0,0.067654]
[1732816270080,0.001,94936.0,94935.0,0.067654]
[1732816272172,0.001,94936.0,94935.0,0.08039729]
[1732816272373,0.001,94936.0,94935.0,0.26961797]
[1732816272568,0.001,94936.0,94935.0,0.08039729]
[1732816276384,0.052646,94950.0,94949.0,0.052644]
[1732816276678,0.052646,94950.0,94949.0,0.413444]
[1732816277182,0.052646,94950.0,94949.0,0.60277775]
[1732816277377,0.052646,94950.0,94949.0,0.413444]
[1732816277683,0.052646,94950.0,94949.0,0.415444]
[1732816277881,0.14724,94954.0,94953.0,0.052643]
[1732816277882,0.052644,94954.0,94953.0,0.052643]
[1732816279083,0.052644,94954.0,94953.0,0.001]
[1732816280082,0.052644,94954.0,94953.0,0.003]
[1732816282387,0.052644,94954.0,94953.0,0.055644]
[1732816282890,0.199844,94954.0,94953.0,0.055644]
[1732816285279,0.052644,94954.0,94953.0,0.055644]
[1732816285486,0.00158007,94955.0,94954.0,0.052643]
[1732816286795,0.00158007,94955.0,94954.0,0.053643]
[1732816287186,0.00158007,94955.0,94954.0,0.054643]
[1732816290692,0.00158007,94955.0,94954.0,0.002]
[1732816290693,0.05422307,94955.0,94954.0,0.002]
[1732816291402,1.55422307,94955.0,94954.0,0.002]
[1732816291997,1.56743238,94955.0,94954.0,0.002]
[1732816296395,0.06743238,94955.0,94954.0,0.002]
[1732816304406,0.0885064,94955.0,94954.0,0.002]
[1732816306603,0.2355864,94955.0,94954.0,0.002]
[1732816307708,0.0885064,94955.0,94954.0,0.002]
[1732816310706,0.052654,94935.0,94934.0,0.3608]
[1732816311215,0.052654,94935.0,94931.0,0.0327]
[1732816311216,0.368654,94935.0,94925.0,0.55013375]
[1732816311408,0.368654,94935.0,94919.0,0.00158006]
[1732816311409,0.052662,94920.0,94919.0,0.00158006]
[1732816311708,0.11603418,94934.0,94919.0,0.00158006]
[1732816311709,0.052655,94933.0,94919.0,0.00158006]
[1732816311900,0.052659,94926.0,94925.0,0.3608]
[1732816312302,0.052659,94926.0,94919.0,0.00158006]
[1732816312303,0.052662,94920.0,94919.0,0.00158006]
[1732816314206,0.199782,94920.0,94919.0,0.00158006]
[1732816314401,0.199782,94920.0,94919.0,0.00558006]
[1732816315010,0.199782,94920.0,94919.0,0.01258006]
[1732816317106,0.21255138,94920.0,94919.0,0.01258006]
[1732816322405,0.052661,94924.0,94923.0,0.05266]
[1732816322613,0.053295,94933.0,94919.0,0.01258006]
[1732816322614,0.052662,94920.0,94919.0,0.01258006]
[1732816323620,0.052662,94920.0,94919.0,0.00158006]
[1732816324413,0.052662,94920.0,94919.0,0.00858006]
[1732816325517,0.052662,94920.0,94919.0,0.01258006]
[1732816330719,0.052662,94920.0,94919.0,0.06524306]
[1732816331919,0.81725536,95088.0,94919.0,0.37338006]
[1732816331920,0.147,94932.0,94919.0,0.37338006]
[1732816332120,0.199656,94932.0,94931.0,0.413456]
[1732816332321,0.199656,94932.0,94931.0,0.3608]
[1732816332322,0.052656,94932.0,94931.0,0.3608]
[1732816332528,0.052661,94922.0,94921.0,0.052662]
[1732816333426,0.052659,94926.0,94925.0,0.052659]
[1732816335022,0.052659,94926.0,94925.0,0.056659]
[1732816335728,0.052658,94930.0,94929.0,0.052656]
[1732816335933,0.052658,94930.0,94929.0,0.413456]
[1732816336319,0.052658,94930.0,94929.0,0.3608]
[1732816336524,0.052658,94930.0,94929.0,0.413457]
[1732816337127,0.052658,94930.0,94929.0,0.415457]
[1732816338926,0.052658,94930.0,94929.0,0.417457]
[1732816340236,0.052658,94930.0,94929.0,0.004]
[1732816340940,1.552658,94930.0,94929.0,0.004]
[1732816342634,0.052662,94920.0,94919.0,0.00158006]
[1732816342936,0.052662,94920.0,94895.0,0.3608]
[1732816342937,0.052663,94919.0,94900.0,0.514273]
[1732816343240,0.368703,94919.0,94901.0,0.052672]
[1732816343628,0.368703,94919.0,94900.0,0.4608]
[1732816343828,0.368703,94919.0,94902.0,0.052672]
[1732816344126,0.368703,94919.0,94918.0,0.00610795]
[1732816344730,0.368703,94919.0,94918.0,0.01010795]
[1732816346236,0.052663,94919.0,94918.0,0.01010795]
[1732816347345,0.06569952,94919.0,94918.0,0.01010795]
[1732816354149,0.06569952,94919.0,94918.0,0.00610795]
[1732816354441,0.21257952,94919.0,94918.0,0.00610795]
[1732816354740,0.21257952,94919.0,94918.0,0.00210795]
[1732816355338,0.06569952,94919.0,94918.0,0.00210795]
[1732816355530,0.21257952,94919.0,94918.0,0.00210795]
[1732816356137,0.21257952,94919.0,94918.0,0.00110795]
[1732816356339,0.21457952,94919.0,94918.0,0.00110795]
[1732816356535,0.06769952,94919.0,94918.0,0.00110795]
[1732816356839,0.21457952,94919.0,94918.0,0.00110795]
[1732816357442,0.22057952,94919.0,94918.0,0.00010795]
[1732816357747,0.21857952,94919.0,94918.0,0.00010795]
[1732816358052,0.21957952,94919.0,94918.0,0.00010795]
[1732816358344,0.07269952,94919.0,94918.0,0.00010795]
[1732816358643,0.21957952,94919.0,94918.0,0.00010795]
[1732816359348,0.21857952,94919.0,94918.0,0.00010795]
[1732816359546,0.22057952,94919.0,94918.0,0.00010795]
[1732816361642,1.72057952,94919.0,94918.0,0.00010795]
[1732816362045,2.03665952,94919.0,94918.0,9.5e-07]
[1732816362243,0.052673,94901.0,94891.0,0.25129769]
[1732816362440,0.199553,94901.0,94891.0,0.062]
[1732816362635,0.199553,94901.0,94891.0,0.114678]
[1732816363053,0.199553,94901.0,94900.0,0.1]
[1732816363445,0.199553,94901.0,94900.0,0.102]
[1732816364251,0.21246932,94901.0,94900.0,0.105]
[1732816364638,0.06558932,94901.0,94900.0,0.157673]
[1732816364842,0.21246932,94901.0,94900.0,0.157673]
[1732816365038,0.14688,94902.0,94900.0,0.105]
[1732816365243,0.052672,94903.0,94902.0,0.052672]
[1732816365438,0.199552,94903.0,94902.0,0.052672]
[1732816366047,0.052672,94903.0,94902.0,0.052672]
[1732816367150,0.052672,94903.0,94902.0,0.054672]
[1732816367950,0.052672,94903.0,94902.0,0.056672]
[1732816371156,0.052672,94903.0,94902.0,0.24596969]
[1732816371652,0.052668,94913.0,94912.0,0.052666]
[1732816371852,0.052668,94913.0,94912.0,0.413466]
[1732816373055,0.053668,94913.0,94912.0,0.413466]
[1732816374159,0.055668,94913.0,94912.0,0.413466]
[1732816378764,0.00158119,94920.0,94912.0,0.729546]
[1732816378964,0.00158119,94920.0,94919.0,0.413463]
[1732816379153,0.05424319,94920.0,94919.0,0.413463]
[1732816380256,0.052662,94920.0,94919.0,0.413463]
[1732816380455,0.052662,94920.0,94919.0,0.3608]
[1732816380849,0.052662,94920.0,94919.0,0.3618]
[1732816381462,0.052662,94920.0,94919.0,0.414463]
[1732816381653,0.01303512,94927.0,94919.0,0.3618]
[1732816381854,0.14688,94929.0,94919.0,0.3628]
[1732816382366,0.05266,94924.0,94923.0,0.05266]
[1732816382566,0.052662,94920.0,94919.0,0.3628]
[1732816382770,0.052662,94920.0,94919.0,0.3618]
[1732816382956,0.052662,94920.0,94919.0,0.3628]
[1732816384366,0.052662,94920.0,94919.0,0.3618]
[1732816384571,0.052662,94920.0,94919.0,0.414463]
[1732816385369,0.052662,94920.0,94919.0,0.415463]
[1732816385665,0.06536857,94920.0,94919.0,0.415463]
[1732816387966,0.01270657,94920.0,94919.0,0.415463]
[1732816388164,0.14668,94926.0,94919.0,0.3628]
[1732816388368,0.052661,94923.0,94920.0,0.052662]
[1732816389075,0.052661,94923.0,94919.0,0.3628]
[1732816389259,0.052661,94923.0,94921.0,0.052661]
[1732816390467,0.15928436,94926.0,94921.0,0.052661]
[1732816390765,0.052661,94922.0,94921.0,0.052661]
[1732816392665,0.052662,94920.0,94919.0,0.3608]
[1732816393858,0.053662,94920.0,94919.0,0.413463]
[1732816398868,0.001,94920.0,94919.0,0.413463]
[1732816400066,0.053662,94920.0,94919.0,0.3608]
[1732816400660,0.053662,94920.0,94919.0,0.413463]
[1732816404469,0.001,94920.0,94919.0,0.413463]
[1732816406572,0.053662,94920.0,94919.0,0.413463]
[1732816410784,0.001,94920.0,94919.0,0.413463]
[1732816411474,0.053662,94920.0,94919.0,0.413463]
[1732816430583,0.001,94920.0,94919.0,0.413463]
[1732816431680,0.053662,94920.0,94919.0,0.413463]
[1732816446496,0.053662,94920.0,94919.0,0.3608]
[1732816447193,0.199902,94920.0,94919.0,0.3608]
[1732816450200,1.699902,94920.0,94919.0,0.3608]
[1732816452200,0.199902,94920.0,94919.0,0.3608]
[1732816454801,0.053662,94920.0,94919.0,0.413463]
[1732816455002,0.001,94920.0,94919.0,0.413463]
[1732816455300,0.001,94920.0,94919.0,0.774263]
[1732816455505,0.08396436,94930.0,94929.0,0.052657]
[1732816455694,0.14624,94931.0,94930.0,0.052657]
[1732816456087,0.052656,94931.0,94930.0,0.052657]
[1732816456288,0.198896,94931.0,94930.0,0.052657]
[1732816457692,0.056657,94930.0,94929.0,0.3608]
[1732816458493,0.052657,94930.0,94929.0,0.3608]
[1732816458695,0.198897,94930.0,94929.0,0.3608]
[1732816459294,0.202897,94930.0,94929.0,0.3608]
[1732816459996,0.204897,94930.0,94929.0,0.3608]
[1732816461902,0.058657,94930.0,94929.0,0.3608]
[1732816462108,0.204897,94930.0,94929.0,0.3608]
[1732816462801,0.058657,94930.0,94929.0,0.413457]
[1732816463006,0.204857,94930.0,94929.0,0.413457]
[1732816465807,0.058657,94930.0,94929.0,0.413457]
[1732816466010,0.006,94930.0,94929.0,0.413457]
[1732816467304,0.058657,94930.0,94929.0,0.413457]
[1732816467505,0.006,94930.0,94929.0,0.413457]
[1732816467906,7.918e-05,94934.0,94933.0,0.052655]
[1732816468107,0.052649,94945.0,94933.0,0.6768]
[1732816468409,0.052649,94945.0,94944.0,0.413449]
[1732816469097,0.05275973,94945.0,94944.0,0.413449]
[1732816469301,0.05775973,94945.0,94944.0,0.413449]
[1732816469908,0.06075973,94945.0,94944.0,0.413449]
[1732816470697,0.05575973,94945.0,94944.0,0.413449]
[1732816470897,0.05675973,94945.0,94944.0,0.413449]
[1732816471809,0.05575973,94945.0,94944.0,0.413449]
[1732816472005,0.05275973,94945.0,94944.0,0.415449]
[1732816473611,0.05275973,94945.0,94944.0,0.414449]
[1732816473809,0.05275973,94945.0,94944.0,0.415449]
[1732816475811,0.05275973,94945.0,94944.0,0.414449]
[1732816476011,0.05275973,94945.0,94944.0,0.415449]
[1732816476609,0.05275973,94945.0,94944.0,0.001]
[1732816476610,0.36871973,94945.0,94944.0,0.001]
[1732816476812,0.05266,94925.0,94924.0,0.3608]
[1732816478318,0.05366,94925.0,94924.0,0.3688]
[1732816478811,0.05466,94925.0,94924.0,0.3668]
[1732816479011,0.05466,94925.0,94924.0,0.3608]
[1732816481005,0.06723071,94925.0,94924.0,0.3608]
[1732816491822,0.08831071,94925.0,94924.0,0.3608]
[1732816492421,0.23423071,94925.0,94924.0,0.3608]
[1732816496331,0.052665,94915.0,94914.0,0.3608]
[1732816497725,0.052665,94915.0,94914.0,0.3628]
[1732816497928,0.052665,94915.0,94914.0,0.3658]
[1732816501921,0.06511897,94915.0,94914.0,0.3658]
[1732816503432,0.06511897,94915.0,94914.0,0.005]
[1732816504244,1.56511897,94915.0,94914.0,0.005]
[1732816504441,0.06511897,94915.0,94914.0,0.005]
[1732816511046,0.21079897,94915.0,94914.0,0.005]
[1732816511556,0.21079897,94915.0,94914.0,0.3658]
[1732816514350,1.71079897,94915.0,94914.0,0.3658]
[1732816516255,1.73188143,94915.0,94914.0,0.3658]
[1732816517046,0.23188143,94915.0,94914.0,0.3658]
[1732816518648,0.08620143,94915.0,94914.0,0.3658]
[1732816518849,0.21079897,94915.0,94914.0,0.3658]
[1732816519349,0.06511897,94915.0,94914.0,0.418466]
[1732816519547,0.14568,94916.0,94914.0,0.3658]
[1732816519749,0.052662,94921.0,94914.0,0.3658]
[1732816519951,0.052662,94921.0,94918.0,0.052663]
[1732816520150,0.052662,94920.0,94918.0,0.052663]
[1732816520552,0.052663,94919.0,94918.0,0.052663]
[1732816521457,0.052663,94919.0,94914.0,0.3658]
[1732816521458,0.14568,94922.0,94921.0,0.052662]
[1732816521755,0.052654,94935.0,94933.0,0.052655]
[1732816521960,0.14726049,94934.0,94933.0,0.413455]
[1732816522147,0.06702081,94934.0,94933.0,0.413455]
[1732816522349,0.00158049,94934.0,94933.0,0.413455]
[1732816524856,0.00358049,94934.0,94933.0,0.413455]
[1732816525260,0.00258049,94934.0,94933.0,0.413455]
[1732816525850,0.00258049,94934.0,94933.0,0.774255]
[1732816526552,0.08396436,94950.0,94933.0,0.774255]
[1732816526553,0.14568,94950.0,94944.0,0.052649]
[1732816526857,0.01229262,94953.0,94944.0,0.413449]
[1732816526858,0.052646,94949.0,94944.0,0.413449]
[1732816527054,0.01229262,94953.0,94944.0,0.413449]
[1732816527055,0.052647,94948.0,94944.0,0.413449]
[1732816527259,0.052647,94947.0,94944.0,0.413449]
[1732816528458,0.00111073,94945.0,94944.0,0.413449]
[1732816528659,0.05375873,94945.0,94944.0,0.3608]
[1732816529460,1.55675873,94945.0,94944.0,0.3608]
[1732816530357,1.87271873,94945.0,94944.0,0.3608]
[1732816530563,0.052659,94927.0,94925.0,0.00157996]
[1732816530763,0.052659,94926.0,94925.0,0.00157996]
[1732816531266,0.052656,94931.0,94925.0,0.00157996]
[1732816531688,0.052656,94931.0,94930.0,0.052657]
[1732816532269,0.14564,94933.0,94932.0,0.052656]
[1732816532763,0.052653,94937.0,94934.0,0.052654]
[1732816532968,0.052653,94937.0,94936.0,0.3608]
[1732816533262,0.198293,94937.0,94936.0,0.3608]
[1732816534055,0.199293,94937.0,94936.0,0.3608]
[1732816534866,0.053653,94937.0,94936.0,0.3608]
[1732816535070,0.200053,94937.0,94936.0,0.3608]
[1732816536566,0.199053,94937.0,94936.0,0.3608]
[1732816536866,0.200053,94937.0,94936.0,0.3608]
[1732816537371,0.001,94937.0,94936.0,0.413453]
[1732816537965,0.002,94937.0,94936.0,0.413453]
[1732816539268,0.001,94937.0,94936.0,0.413453]
[1732816539476,0.002,94937.0,94936.0,0.413453]
[1732816541974,0.054653,94937.0,94936.0,0.413453]
[1732816548280,0.02107671,94947.0,94936.0,0.413453]
[1732816548281,0.052641,94960.0,94959.0,0.052641]
[1732816548473,0.1454,94969.0,94959.0,0.3608]
[1732816548782,0.01244529,94966.0,94959.0,0.3608]
[1732816549082,0.05264,94960.0,94959.0,0.413441]
[1732816549383,0.05275945,94960.0,94959.0,0.413441]
[1732816549581,0.00011945,94960.0,94959.0,0.413441]
[1732816549778,0.00011945,94960.0,94959.0,0.414441]
[1732816549779,0.00711945,94960.0,94959.0,0.414441]